bitfinex/quotes_SOLUSD_20230113
["timestamp","ask_amount","ask_price","bid_price","bid_amount"]
[1673640439450,43.56,17.218,17.194,43.62]
[1673640439868,6.68236,17.219,17.2,38.04]
[1673640440073,43.55,17.225,17.201,20.0]
[1673640440282,43.54,17.229,17.201,63.61]
[1673640440615,43.53,17.23,17.201,63.61]
[1673640440809,43.53,17.231,17.202,20.0]
[1673640441020,43.54,17.229,17.21,38.12]
[1673640441230,43.53,17.23,17.21,38.12]
[1673640441479,43.53,17.231,17.21,38.12]
[1673640441666,43.54,17.229,17.21,38.12]
[1673640442070,43.53,17.232,17.21,38.12]
[1673640442285,114.09,17.226,17.21,38.12]
[1673640442504,43.53,17.233,17.21,38.12]
[1673640442714,109.2648,17.235,17.22,37.91]
[1673640443141,43.52,17.237,17.221,43.56]
[1673640443346,158.3206,17.245,17.222,20.0]
[1673640443760,114.8206,17.245,17.223,43.55]
[1673640443976,114.8206,17.245,17.224,20.0]
[1673640444520,114.8206,17.245,17.225,43.55]
[1673640444826,114.8206,17.245,17.224,63.55]
[1673640445664,43.49,17.248,17.23,38.12]
[1673640445851,43.48,17.25,17.23,38.12]
[1673640446061,43.48,17.252,17.23,38.12]
[1673640446268,108.2453,17.261,17.23,38.12]
[1673640446269,43.47,17.257,17.232,4.38494578]
[1673640446515,43.46,17.258,17.232,4.38494578]
[1673640446826,43.46,17.26,17.24,190.38]
[1673640447010,43.44,17.269,17.25,38.0]
[1673640447221,43.43,17.27,17.25,38.0]
[1673640447439,43.44,17.268,17.25,38.0]
[1673640447643,20.0,17.268,17.241,43.51]
[1673640447866,20.0,17.268,17.24,37.75]
[1673640447867,50.12236,17.267,17.24,37.75]
[1673640448084,20.0,17.266,17.24,37.75]
[1673640448606,43.45,17.265,17.24,37.75]
[1673640448819,40.0,17.264,17.24,37.75]
[1673640449031,6.68236,17.263,17.24,37.75]
[1673640449241,20.0,17.262,17.24,37.75]
[1673640449556,130.3687,17.262,17.24,37.75]
[1673640449777,43.46,17.261,17.24,37.75]
[1673640449956,20.0,17.26,17.233,43.53]
[1673640450164,20.0,17.26,17.234,20.0]
[1673640450165,17.0,17.259,17.234,20.0]
[1673640450376,6.68236,17.258,17.234,20.0]
[1673640450578,17.0,17.257,17.234,20.0]
[1673640450799,60.47,17.257,17.232,20.0]
[1673640451227,60.47,17.257,17.233,63.53]
[1673640451419,60.47,17.257,17.234,20.0]
[1673640451635,20.0,17.256,17.234,20.0]
[1673640451855,17.0,17.255,17.232,20.0]
[1673640452065,60.47,17.255,17.231,20.0]
[1673640452476,60.47,17.255,17.231,63.53]
[1673640452897,43.47,17.255,17.231,47.54703211]
[1673640453118,43.47,17.255,17.231,63.53]
[1673640453439,43.47,17.256,17.231,63.53]
[1673640453635,43.47,17.254,17.231,63.53]
[1673640453844,60.47,17.255,17.231,63.53]
[1673640454072,17.0,17.255,17.231,63.53]
[1673640454383,43.47,17.254,17.231,63.53]
[1673640455010,6.68236,17.257,17.231,63.53]
[1673640455011,43.47,17.256,17.231,63.53]
[1673640455549,20.0,17.255,17.231,20.0]
[1673640455970,60.47,17.254,17.231,20.0]
[1673640456156,118.6089,17.253,17.231,63.53]
[1673640456364,43.47,17.254,17.232,20.0]
[1673640456593,43.46,17.259,17.24,38.12]
[1673640456820,20.0,17.26,17.24,38.12]
[1673640457118,43.45,17.265,17.25,38.04]
[1673640457541,43.44,17.267,17.25,38.04]
[1673640457732,43.44,17.269,17.25,38.04]
[1673640458571,63.43,17.27,17.25,38.04]
[1673640458782,20.0,17.27,17.25,38.04]
[1673640458992,20.0,17.27,17.251,20.0]
[1673640459202,43.42,17.275,17.26,37.76]
[1673640459418,117.2659,17.28,17.26,37.76]
[1673640459419,43.41,17.279,17.26,37.76]
[1673640459735,117.2659,17.28,17.26,37.76]
[1673640460391,20.0,17.279,17.26,92.85406422]
[1673640460594,63.41,17.279,17.26,65.30703211]
[1673640460924,63.41,17.279,17.26,37.76]
[1673640461447,63.41,17.279,17.253,43.48]
[1673640461448,6.68236,17.278,17.253,43.48]
[1673640461628,6.68236,17.278,17.254,20.0]
[1673640461629,123.78506,17.278,17.254,20.0]
[1673640461833,17.0,17.277,17.252,20.0]
[1673640462050,20.0,17.276,17.252,20.0]
[1673640462260,17.0,17.275,17.251,20.0]
[1673640462470,20.0,17.274,17.251,20.0]
[1673640462673,20.0,17.274,17.25,38.12]
[1673640462674,20.0,17.273,17.25,38.12]
[1673640462898,20.0,17.273,17.246,27.54703211]
[1673640462899,6.68236,17.272,17.246,27.54703211]
[1673640463113,218.3,17.271,17.246,27.54703211]
[1673640463305,6.68236,17.27,17.24,38.12]
[1673640463516,198.3,17.269,17.236,27.54703211]
[1673640463727,26.68236,17.268,17.23,38.12]
[1673640463957,20.0,17.266,17.231,71.07703211]
[1673640464161,319.00896,17.265,17.231,71.07703211]
[1673640464372,26.68236,17.264,17.231,43.53]
[1673640464563,26.68236,17.263,17.231,43.53]
[1673640464782,26.68236,17.263,17.225,43.55]
[1673640464783,6.68236,17.262,17.225,43.55]
[1673640464992,178.3,17.259,17.221,43.49]
[1673640465215,224.98236,17.258,17.222,20.0]
[1673640465426,6.68236,17.257,17.222,20.0]
[1673640465632,37.0,17.256,17.223,37.68]
[1673640465851,80.47,17.256,17.23,38.12]
[1673640466252,29.9691928,17.255,17.23,38.12]
[1673640466463,37.0,17.254,17.23,38.12]
[1673640466677,80.47,17.254,17.23,38.12]
[1673640466905,110.4391928,17.254,17.23,38.12]
[1673640467090,63.47,17.254,17.23,38.12]
[1673640467508,43.46,17.26,17.24,38.12]
[1673640467830,143.9957928,17.265,17.24,38.12]
[1673640468241,43.46,17.261,17.24,38.12]
[1673640468667,43.46,17.261,17.24,65.66703211]
[1673640469838,43.46,17.261,17.241,60.3]
[1673640470033,43.44,17.267,17.241,60.3]
[1673640470242,43.44,17.269,17.242,27.54703211]
[1673640470452,20.0,17.268,17.243,37.0]
[1673640470679,20.0,17.268,17.243,78.33]
[1673640470875,20.0,17.268,17.244,27.54703211]
[1673640471092,43.44,17.267,17.244,27.54703211]
[1673640471298,43.44,17.267,17.245,60.76]
[1673640471730,43.44,17.267,17.246,27.54703211]
[1673640471946,20.0,17.27,17.246,27.54703211]
[1673640471947,43.44,17.269,17.246,27.54703211]
[1673640472159,43.44,17.269,17.247,40.92]
[1673640472584,43.44,17.269,17.248,27.54703211]
[1673640472994,291.5256,17.271,17.248,27.54703211]
[1673640472995,43.43,17.27,17.248,27.54703211]
[1673640473207,63.43,17.27,17.249,17.0]
[1673640473614,17.0,17.269,17.249,27.54703211]
[1673640473831,17.0,17.269,17.245,20.0]
[1673640474047,17.0,17.269,17.241,43.51]
[1673640474048,221.74,17.268,17.242,20.0]
[1673640474258,17.0,17.267,17.242,20.0]
[1673640474458,178.3,17.265,17.241,71.05703211]
[1673640474792,40.0,17.266,17.226,20.0]
[1673640474793,20.0,17.262,17.236,43.52]
[1673640475104,43.68236,17.264,17.236,43.52]
[1673640475105,43.45,17.264,17.236,43.52]
[1673640475296,43.45,17.264,17.241,70.09703211]
[1673640475506,43.44,17.266,17.241,70.09703211]
[1673640475743,20.0,17.265,17.241,70.09703211]
[1673640476057,63.45,17.265,17.241,42.55]
[1673640476370,20.0,17.265,17.242,20.0]
[1673640476580,241.75,17.264,17.241,42.55]
[1673640476771,6.68236,17.263,17.236,42.29]
[1673640476981,20.0,17.261,17.23,38.04]
[1673640477206,23.68236,17.26,17.23,38.04]
[1673640477401,26.68236,17.259,17.23,38.04]
[1673640477734,23.68236,17.258,17.231,37.19]
[1673640477956,184.98236,17.257,17.231,37.19]
[1673640478260,17.0,17.256,17.231,37.19]
[1673640478465,198.3,17.255,17.231,37.19]
[1673640478695,198.3,17.255,17.228,187.1743843]
[1673640478696,178.3,17.253,17.228,187.1743843]
[1673640478877,178.3,17.251,17.228,187.1743843]
[1673640479082,184.98236,17.251,17.228,187.1743843]
[1673640479297,198.3,17.249,17.228,187.1743843]
[1673640479509,17.0,17.248,17.228,187.1743843]
[1673640479714,224.98236,17.247,17.228,187.1743843]
[1673640479952,23.68236,17.246,17.228,187.1743843]
[1673640480264,20.0,17.244,17.228,187.1743843]
[1673640480451,37.0,17.243,17.228,187.1743843]
[1673640480656,66.9691928,17.243,17.228,187.1743843]
[1673640480896,178.3,17.241,17.228,37.1743843]
[1673640481104,23.68236,17.24,17.228,37.1743843]
[1673640481414,20.0,17.239,17.228,37.1743843]
[1673640481617,17.0,17.238,17.228,37.1743843]
[1673640482017,43.52,17.237,17.228,37.1743843]
[1673640482233,17.0,17.236,17.228,37.1743843]
[1673640482443,37.0,17.236,17.228,37.1743843]
[1673640482652,43.52,17.235,17.228,37.1743843]
[1673640483708,20.0,17.234,17.228,37.1743843]
[1673640484584,20.0,17.234,17.228,0.0043843]
[1673640484885,20.0,17.232,17.222,6.5848336]
[1673640485070,20.0,17.231,17.222,6.5848336]
[1673640485279,20.0,17.23,17.222,6.5848336]
[1673640487180,43.54,17.229,17.222,6.5848336]
[1673640488243,43.53,17.23,17.222,6.5848336]
[1673640488559,20.0,17.229,17.222,6.5848336]
[1673640488968,20.0,17.229,17.213,97.0855719]
[1673640489180,20.0,17.227,17.213,97.0855719]
[1673640489601,43.54,17.226,17.213,97.0855719]
[1673640489921,20.0,17.227,17.213,97.0855719]
[1673640490327,17.0,17.226,17.213,97.0855719]
[1673640490858,271.8191928,17.225,17.213,97.0855719]
[1673640491071,20.0,17.223,17.199,25.4357874]
[1673640491284,20.0,17.221,17.199,25.4357874]
[1673640491688,228.2691928,17.221,17.199,25.4357874]
[1673640492012,67.24236,17.22,17.199,25.4357874]
[1673640492339,6.68236,17.219,17.199,25.4357874]
[1673640492554,43.56,17.22,17.199,25.4357874]
[1673640492764,43.56,17.221,17.199,25.4357874]
[1673640492952,43.56,17.219,17.201,26.99504871]
[1673640493161,20.0,17.222,17.2,20.0]
[1673640493162,43.56,17.22,17.2,20.0]
[1673640493383,43.56,17.221,17.201,26.99504871]
[1673640493605,90.90376112,17.258,17.207,26.99504871]
[1673640493794,26.68236,17.231,17.21,20.0]
[1673640494012,6.68236,17.23,17.21,20.0]
[1673640494217,50.21236,17.23,17.21,20.0]
[1673640494949,20.0,17.228,17.207,37.57]
[1673640495158,23.68236,17.227,17.206,26.99504871]
[1673640495386,17.0,17.226,17.202,37.58]
[1673640495701,6.68236,17.227,17.203,20.0]
[1673640496020,60.54,17.226,17.203,20.0]
[1673640496204,50.22236,17.227,17.204,37.57]
[1673640496948,50.22236,17.227,17.203,20.0]
[1673640496949,6.68236,17.227,17.21,38.12]
[1673640497156,6.68236,17.227,17.209,37.56]
[1673640497680,6.68236,17.227,17.207,26.99504871]
[1673640497890,178.3,17.225,17.204,37.56]
[1673640498119,20.0,17.224,17.201,26.99504871]
[1673640498336,178.3,17.222,17.199,25.4357874]
[1673640498647,20.0,17.22,17.199,25.4357874]
[1673640498860,23.68236,17.219,17.199,25.4357874]
[1673640499047,26.68236,17.218,17.199,25.4357874]
[1673640499251,23.68236,17.217,17.199,25.4357874]
[1673640499692,13.68236,17.217,17.199,25.4357874]
[1673640499901,6.68236,17.217,17.199,25.4357874]
[1673640500513,204.98236,17.216,17.199,25.4357874]
[1673640500748,178.3,17.214,17.199,25.4357874]
[1673640500941,26.68236,17.213,17.199,25.4357874]
[1673640501145,26.68236,17.212,17.199,25.4357874]
[1673640501357,26.68236,17.211,17.199,25.4357874]
[1673640501601,184.98236,17.21,17.199,25.4357874]
[1673640501797,178.3,17.208,17.199,25.4357874]
[1673640502004,23.68236,17.209,17.199,25.4357874]
[1673640502217,43.59,17.207,17.199,25.4357874]
[1673640502440,43.59,17.208,17.199,25.4357874]
[1673640502632,221.89,17.208,17.199,25.4357874]
[1673640502851,17.0,17.207,17.199,25.4357874]
[1673640503073,20.0,17.206,17.199,25.4357874]
[1673640503282,178.3,17.205,17.199,25.4357874]
[1673640504838,17.0,17.204,17.199,25.4357874]
[1673640505061,198.3,17.203,17.199,8.74e-05]
[1673640505384,178.3,17.201,17.199,8.74e-05]
[1673640505785,258.91,17.2,17.199,8.74e-05]
[1673640506626,258.91,17.2,17.189,4.36085027]
[1673640506627,295.5615528,17.2,17.189,4.36085027]
[1673640506837,26.68236,17.199,17.189,4.36085027]
[1673640507044,6.68236,17.198,17.189,4.36085027]
[1673640507281,195.3,17.197,17.189,4.36085027]
[1673640507596,6.68236,17.196,17.189,4.36085027]
[1673640507785,20.0,17.194,17.189,4.36085027]
[1673640507997,178.3,17.195,17.189,4.36085027]
[1673640508219,43.62,17.194,17.189,4.36085027]
[1673640508435,20.0,17.194,17.183,6.5848336]
[1673640508642,60.63,17.193,17.183,6.5848336]
[1673640508959,6.68236,17.196,17.183,6.5848336]
[1673640509385,60.62,17.195,17.183,6.5848336]
[1673640509581,178.3,17.194,17.183,6.5848336]
[1673640509784,17.0,17.193,17.183,6.5848336]
[1673640509992,17.0,17.193,17.174,97.0855719]
[1673640509993,20.0,17.191,17.174,97.0855719]
[1673640510222,6.68236,17.19,17.174,97.0855719]
[1673640510410,17.0,17.189,17.174,97.0855719]
[1673640510623,6.68236,17.189,17.174,97.0855719]
[1673640510830,43.64,17.188,17.174,97.0855719]
[1673640511588,43.63,17.191,17.174,97.0855719]
[1673640511910,17.0,17.19,17.174,97.0855719]
[1673640512306,50.31236,17.191,17.174,97.0855719]
[1673640512307,43.64,17.189,17.174,97.0855719]
[1673640512519,20.0,17.192,17.174,97.0855719]
[1673640512738,20.0,17.194,17.174,97.0855719]
[1673640513051,20.0,17.198,17.175,20.0]
[1673640513268,6.68236,17.197,17.176,17.0]
[1673640513477,20.0,17.196,17.176,17.0]
[1673640513694,20.0,17.195,17.174,97.0855719]
[1673640513884,26.68236,17.194,17.174,97.0855719]
[1673640514094,6.68236,17.193,17.174,97.0855719]
[1673640514408,20.0,17.192,17.174,97.0855719]
[1673640514623,63.63,17.192,17.174,97.0855719]
[1673640515473,20.0,17.192,17.175,20.0]
[1673640516298,43.62,17.197,17.176,26.99504871]
[1673640516509,43.62,17.197,17.176,65.25504871]
[1673640516735,43.6,17.202,17.176,65.25504871]
[1673640516948,29.9691928,17.203,17.177,43.99504871]
[1673640517143,73.5791928,17.201,17.177,17.0]
[1673640517353,184.98236,17.2,17.175,38.26]
[1673640517575,26.68236,17.199,17.176,20.0]
[1673640517895,17.0,17.198,17.176,20.0]
[1673640518210,43.61,17.198,17.176,20.0]
[1673640518417,178.3,17.196,17.175,23.275568]
[1673640518744,6.68236,17.195,17.175,23.275568]
[1673640518934,50.30236,17.195,17.175,23.275568]
[1673640519144,20.0,17.194,17.175,23.275568]
[1673640519347,63.62,17.194,17.175,23.275568]
[1673640519562,63.62,17.194,17.175,50.27061671]
[1673640519987,6.68236,17.195,17.176,20.0]
[1673640520210,43.61,17.199,17.176,58.22]
[1673640520423,23.275568,17.2,17.177,53.99009742]
[1673640520612,221.91,17.198,17.176,38.22]
[1673640520819,20.0,17.196,17.176,38.22]
[1673640521029,6.68236,17.195,17.175,23.275568]
[1673640521237,198.3,17.194,17.175,23.275568]
[1673640521466,23.68236,17.193,17.175,23.275568]
[1673640521671,204.98236,17.192,17.175,23.275568]
[1673640521885,20.0,17.19,17.175,23.275568]
[1673640522103,23.68236,17.189,17.175,23.275568]
[1673640522416,178.3,17.188,17.175,23.275568]
[1673640522603,221.98236,17.187,17.175,23.275568]
[1673640522812,17.0,17.186,17.175,23.275568]
[1673640523247,43.65,17.185,17.175,23.275568]
[1673640523462,43.65,17.186,17.175,23.275568]
[1673640523668,178.3,17.185,17.175,23.275568]
[1673640523882,17.0,17.184,17.175,23.275568]
[1673640524071,60.65,17.184,17.175,23.275568]
[1673640524288,20.0,17.183,17.175,23.275568]
[1673640524835,178.3,17.184,17.175,23.275568]
[1673640525235,178.3,17.188,17.175,23.275568]
[1673640525547,43.64,17.189,17.175,23.275568]
[1673640525757,43.64,17.19,17.176,17.0]
[1673640525969,20.0,17.189,17.176,17.0]
[1673640526184,43.63,17.193,17.176,17.0]
[1673640526394,241.92,17.194,17.176,17.0]
[1673640526605,20.0,17.193,17.176,17.0]
[1673640526832,20.0,17.193,17.175,23.275568]
[1673640527041,6.68236,17.192,17.175,23.275568]
[1673640527242,20.0,17.19,17.175,23.275568]
[1673640527448,26.68236,17.189,17.175,23.275568]
[1673640527665,20.0,17.187,17.175,23.275568]
[1673640527976,17.0,17.186,17.175,23.275568]
[1673640528187,26.68236,17.185,17.175,23.275568]
[1673640528408,201.98236,17.184,17.175,23.275568]
[1673640528601,26.68236,17.183,17.175,23.275568]
[1673640528806,26.68236,17.183,17.174,97.0855719]
[1673640528807,17.0,17.182,17.174,97.0855719]
[1673640529037,20.0,17.181,17.174,97.0855719]
[1673640529241,17.0,17.18,17.174,97.0855719]
[1673640529646,50.34236,17.181,17.174,97.0855719]
[1673640529856,6.68236,17.181,17.174,97.0855719]
[1673640530090,6.68236,17.181,17.175,20.0]
[1673640530821,20.0,17.19,17.174,97.0855719]
[1673640531032,178.3,17.188,17.174,97.0855719]
[1673640531236,6.68236,17.187,17.174,97.0855719]
[1673640531577,43.64,17.187,17.174,93.7590529]
[1673640531773,198.3,17.186,17.174,93.7590529]
[1673640531957,195.3,17.185,17.174,93.7590529]
[1673640532165,20.0,17.184,17.174,93.7590529]
[1673640532379,17.0,17.183,17.174,93.7590529]
[1673640534095,43.65,17.184,17.174,93.7590529]
[1673640534288,20.0,17.184,17.174,93.7590529]
[1673640534605,178.3,17.185,17.174,93.7590529]
[1673640535028,43.65,17.186,17.174,93.7590529]
[1673640535236,221.94,17.189,17.174,93.7590529]
[1673640535457,17.0,17.188,17.174,93.7590529]
[1673640535633,221.94,17.189,17.174,93.7590529]
[1673640536165,178.3,17.19,17.174,93.7590529]
[1673640536367,20.0,17.189,17.174,93.7590529]
[1673640536804,20.0,17.189,17.175,63.99504871]
[1673640537224,218.3,17.192,17.175,43.99504871]
[1673640537758,198.3,17.192,17.175,43.99504871]
[1673640538156,198.3,17.192,17.175,17.0]
[1673640538157,20.0,17.192,17.175,17.0]
[1673640539024,178.3,17.19,17.174,93.7590529]
[1673640539232,40.0,17.189,17.174,93.7590529]
[1673640539434,17.0,17.188,17.174,93.7590529]
[1673640539634,20.0,17.186,17.174,93.7590529]
[1673640539842,17.0,17.185,17.174,93.7590529]
[1673640540057,43.65,17.185,17.174,93.7590529]
[1673640540270,43.64,17.187,17.174,93.7590529]
[1673640540494,43.64,17.188,17.174,93.7590529]
[1673640541750,20.0,17.189,17.174,93.7590529]
[1673640542364,20.0,17.191,17.174,93.7590529]
[1673640542576,20.0,17.19,17.174,93.7590529]
[1673640542802,184.98236,17.189,17.174,93.7590529]
[1673640543010,6.68236,17.188,17.174,93.7590529]
[1673640543233,178.3,17.186,17.174,93.7590529]
[1673640543440,26.68236,17.185,17.174,93.7590529]
[1673640543750,20.0,17.183,17.174,93.7590529]
[1673640543949,20.0,17.181,17.174,93.7590529]
[1673640544158,178.3,17.179,17.174,93.7590529]
[1673640544359,20.0,17.177,17.168,59.0923288]
[1673640544574,198.3,17.177,17.168,59.0923288]
[1673640544796,60.67,17.176,17.168,59.0923288]
[1673640545005,17.0,17.176,17.168,59.0923288]
[1673640545416,178.3,17.177,17.168,59.0923288]
[1673640545624,178.3,17.179,17.168,59.0923288]
[1673640546459,43.67,17.178,17.168,59.0923288]
[1673640546674,17.0,17.177,17.168,59.0923288]
[1673640546884,20.0,17.176,17.168,59.0923288]
[1673640547094,63.67,17.176,17.168,59.0923288]
[1673640547303,20.0,17.176,17.168,59.0923288]
[1673640547515,17.0,17.175,17.168,59.0923288]
[1673640548251,178.3,17.178,17.168,59.0923288]
[1673640548883,43.66,17.179,17.168,59.0923288]
[1673640549638,20.0,17.179,17.168,59.0923288]
[1673640549850,178.3,17.177,17.168,59.0923288]
[1673640550564,63.66,17.18,17.168,59.0923288]
[1673640550782,20.0,17.18,17.168,59.0923288]
[1673640550984,20.0,17.18,17.169,17.0]
[1673640551196,63.65,17.184,17.169,17.0]
[1673640552139,198.3,17.189,17.169,17.0]
[1673640552140,43.64,17.187,17.17,38.54]
[1673640552355,178.3,17.189,17.172,20.0]
[1673640552579,178.3,17.189,17.173,3.15581951]
[1673640552776,178.3,17.189,17.172,26.99504871]
[1673640553109,20.0,17.191,17.173,3.25671519]
[1673640553520,178.3,17.19,17.173,20.25671519]
[1673640553725,20.0,17.189,17.172,26.99504871]
[1673640554696,20.0,17.189,17.173,17.0]
[1673640554918,63.63,17.191,17.174,2.80718343]
[1673640555129,43.63,17.191,17.174,22.80718343]
[1673640555313,43.62,17.197,17.174,88.15223214]
[1673640555528,43.62,17.197,17.177,3.99778188]
[1673640555739,43.62,17.197,17.177,40.99778188]
[1673640555953,178.3,17.196,17.179,3.99778188]
[1673640556179,6.68236,17.195,17.179,3.99778188]
[1673640556397,6.68236,17.195,17.168,59.0923288]
[1673640556398,178.3,17.194,17.168,59.0923288]
[1673640556603,26.68236,17.193,17.168,59.0923288]
[1673640556815,184.98236,17.192,17.168,59.0923288]
[1673640557009,6.68236,17.191,17.168,59.0923288]
[1673640557212,195.3,17.19,17.168,86.08737751]
[1673640557424,218.3,17.189,17.168,86.08737751]
[1673640557643,17.0,17.188,17.168,86.08737751]
[1673640557973,20.0,17.187,17.168,59.0923288]
[1673640558184,17.0,17.186,17.168,59.0923288]
[1673640558597,221.95,17.185,17.168,59.0923288]
[1673640559426,43.65,17.185,17.168,59.0923288]
[1673640559637,6.68236,17.188,17.168,86.92441891]
[1673640559965,43.64,17.187,17.168,86.92441891]
[1673640560485,43.64,17.187,17.168,59.0923288]
[1673640560705,43.64,17.187,17.169,27.83209011]
[1673640561206,43.64,17.188,17.169,27.83209011]
[1673640561940,221.94,17.188,17.169,27.83209011]
[1673640562171,221.94,17.188,17.168,59.0923288]
[1673640563214,178.3,17.186,17.168,59.0923288]
[1673640563407,20.0,17.183,17.168,59.0923288]
[1673640563624,215.3,17.182,17.168,59.0923288]
[1673640563850,20.0,17.181,17.168,59.0923288]
[1673640564037,20.0,17.18,17.168,59.0923288]
[1673640564252,258.96,17.182,17.168,59.0923288]
[1673640564672,265.64236,17.182,17.168,59.0923288]
[1673640564884,20.0,17.181,17.168,59.0923288]
[1673640565206,215.3,17.18,17.168,59.0923288]
[1673640565413,258.96,17.18,17.168,59.0923288]
[1673640565958,63.66,17.18,17.168,59.0923288]
[1673640566154,20.0,17.18,17.168,59.0923288]
[1673640566474,178.3,17.183,17.168,59.0923288]
[1673640566703,63.66,17.182,17.168,59.0923288]
[1673640566878,20.0,17.182,17.168,59.0923288]
[1673640567516,20.0,17.183,17.168,59.0923288]
[1673640567729,63.65,17.183,17.168,59.0923288]
[1673640568043,20.0,17.183,17.168,59.0923288]
[1673640568572,43.66,17.182,17.168,59.0923288]
[1673640568781,20.0,17.181,17.168,59.0923288]
[1673640569524,20.0,17.179,17.168,59.0923288]
[1673640569732,198.3,17.179,17.168,59.0923288]
[1673640569930,17.0,17.178,17.168,59.0923288]
[1673640570468,178.3,17.177,17.168,59.0923288]
[1673640571306,20.0,17.176,17.168,59.0923288]
[1673640571511,20.0,17.176,17.168,0.0023288]
[1673640571512,17.0,17.175,17.168,0.0023288]
[1673640571725,20.0,17.174,17.168,0.0023288]
[1673640571930,241.98,17.174,17.168,0.0023288]
[1673640572152,20.0,17.173,17.168,0.0023288]
[1673640572356,20.0,17.172,17.168,0.0023288]
[1673640572572,63.68,17.172,17.168,0.0023288]
[1673640572984,20.0,17.172,17.168,0.0023288]
[1673640573518,20.0,17.171,17.168,0.0023288]
[1673640573729,20.0,17.17,17.168,0.0023288]
[1673640574557,63.68,17.172,17.168,0.0023288]
[1673640574974,43.68,17.172,17.168,0.0023288]
[1673640575195,43.67,17.176,17.168,0.0023288]
[1673640575504,43.66,17.179,17.168,0.0023288]
[1673640575714,43.66,17.18,17.168,0.0023288]
[1673640575927,20.0,17.179,17.168,0.0023288]
[1673640576699,20.0,17.181,17.168,0.0023288]
[1673640576862,63.66,17.181,17.168,0.0023288]
[1673640577079,20.0,17.18,17.168,0.0023288]
[1673640577290,20.0,17.179,17.168,0.0023288]
[1673640577824,20.0,17.18,17.168,0.0023288]
[1673640578365,20.0,17.179,17.168,0.0023288]
[1673640578766,20.0,17.18,17.168,0.0023288]
[1673640579834,40.0,17.18,17.168,0.0023288]
[1673640580661,20.0,17.18,17.168,0.0023288]
[1673640581420,20.0,17.179,17.168,0.0023288]
[1673640584042,40.0,17.18,17.168,0.0023288]
[1673640584858,20.0,17.18,17.168,0.0023288]
[1673640586857,20.0,17.179,17.168,0.0023288]
[1673640587276,63.67,17.178,17.168,0.0023288]
[1673640587489,20.0,17.177,17.168,0.0023288]
[1673640587909,17.0,17.176,17.168,0.0023288]
[1673640588131,20.0,17.175,17.168,0.0023288]
[1673640588342,63.67,17.175,17.168,0.0023288]
[1673640588755,20.0,17.173,17.168,0.0023288]
[1673640589177,20.0,17.171,17.168,0.0023288]
[1673640589716,20.0,17.17,17.168,0.0023288]
[1673640591796,20.0,17.171,17.168,0.0023288]
[1673640592019,20.0,17.172,17.168,0.0023288]
[1673640592351,63.68,17.172,17.168,0.0023288]
[1673640593083,20.0,17.172,17.168,0.0023288]
[1673640594146,20.0,17.173,17.168,0.0023288]
[1673640594323,43.67,17.176,17.168,0.0023288]
[1673640594533,43.67,17.177,17.168,0.0023288]